fUST/lending_fUST_20250227
["ID","MTS","AMOUNT","RATE_DAILY","PERIOD"]
[354679526,1740612678170,-689.260793,0.0005178,120]
[354679527,1740612678179,-476.944486,0.0005178,30]
[354679528,1740612678189,-500.0,0.0005178,120]
[354679529,1740612678198,-500.0,0.0005178,120]
[354679530,1740612678208,-151.0,0.0005178,120]
[354679531,1740612678217,-846.39,0.0005178,120]
[354679532,1740612678227,-500.0,0.0005178,120]
[354679533,1740612678236,-322.736773,0.0005178,120]
[354679534,1740612678246,-322.73678,0.0005178,120]
[354679535,1740612678256,-254.826343,0.0005178,120]
[354679536,1740612678265,-564.78,0.0005178,120]
[354679537,1740612678275,-254.826349,0.0005178,120]
[354679538,1740612678284,-241.442179,0.0005178,120]
[354679539,1740612678293,-539.55,0.0005178,120]
[354679540,1740612678303,-241.442179,0.0005178,120]
[354679541,1740612678312,-151.0,0.0005178,120]
[354679542,1740612678322,-500.0,0.0005178,120]
[354679543,1740612678331,-1428.1,0.0005178,120]
[354679544,1740612678340,-500.0,0.0005178,120]
[354679545,1740612678349,-600.9,0.0005178,120]
[354679546,1740612678358,-500.0,0.0005178,120]
[354679547,1740612678368,-615.68,0.0005178,120]
[354679548,1740612678485,-802.71,0.0005178,120]
[354679549,1740612678495,-859.89,0.0005178,120]
[354679550,1740612678505,-500.0,0.0005178,120]
[354679551,1740612678515,-7716.64,0.0005178,120]
[354679552,1740612678524,-1087.51,0.0005178,120]
[354679553,1740612678533,-500.0,0.0005178,120]
[354679554,1740612678542,-11356.27,0.0005178,120]
[354679555,1740612678551,-8145.14,0.0005178,120]
[354679556,1740612678560,-500.0,0.0005178,120]
[354679557,1740612678569,-2928.74,0.0005178,120]
[354679558,1740612678579,-1626.2,0.0005178,120]
[354679559,1740612678588,-982.75,0.0005178,120]
[354679560,1740612678597,-513.83,0.0005178,120]
[354679561,1740612678607,-500.0,0.0005178,120]
[354679562,1740612678616,-802.07,0.0005178,120]
[354679563,1740612678625,-3574.17,0.0005178,120]
[354679564,1740612678634,-1405.43,0.0005178,120]
[354679565,1740612678643,-511.36,0.0005178,30]
[354679566,1740612678653,-7025.95,0.0005178,120]
[354679567,1740612678662,-500.0,0.0005178,120]
[354679568,1740612678673,-732.33,0.0005178,120]
[354679569,1740612678683,-11606.25,0.0005178,3]
[354679570,1740612678694,-500.0,0.0005178,120]
[354679571,1740612678707,-522.21,0.0005178,120]
[354679572,1740612678716,-6098.04,0.0005178,120]
[354679573,1740612678725,-1769.31,0.0005178,120]
[354679574,1740612678735,-531.78,0.0005178,120]
[354679575,1740612678746,-5165.94,0.0005178,120]
[354679576,1740612678755,-1296.39,0.0005178,120]
[354679577,1740612678765,-745.32,0.0005178,120]
[354679578,1740612678776,-1319.72,0.0005178,120]
[354679579,1740612678786,-1434.05,0.0005178,120]
[354679580,1740612678795,-602.5,0.0005178,120]
[354679581,1740612678804,-901.96,0.0005178,120]
[354679582,1740612678813,-11788.68,0.0005178,120]
[354679583,1740612678822,-500.0,0.0005178,120]
[354679584,1740612678832,-3610.93,0.0005178,120]
[354679585,1740612678842,-506.91,0.0005178,120]
[354679586,1740612678851,-1267.92,0.0005178,120]
[354679587,1740612678860,-2222.15,0.0005178,120]
[354679588,1740612678870,-600.75,0.0005178,120]
[354679589,1740612678879,-963.51,0.0005178,120]
[354679590,1740612678889,-1872.17,0.0005178,120]
[354679591,1740612678899,-7675.21,0.0005178,120]
[354679592,1740612678908,-3447.65,0.0005178,120]
[354679593,1740612678917,-714.42,0.0005178,120]
[354679594,1740612678927,-500.0,0.0005178,120]
[354679595,1740612678937,-1518.89,0.0005178,120]
[354679596,1740612678946,-828.63,0.0005178,120]
[354679597,1740612678956,-500.0,0.0005178,120]
[354679598,1740612678965,-500.0,0.0005178,120]
[354679599,1740612678975,-874.37,0.0005178,120]
[354679600,1740612678984,-16446.27,0.0005178,120]
[354679601,1740612678994,-987.91,0.0005178,120]
[354679602,1740612679004,-544.41,0.0005178,120]
[354679603,1740612679014,-434.83268672,0.0005178,120]
[354679604,1740612679023,-1207.51,0.00051786,120]
[354679605,1740612679033,-818.25,0.00051786,120]
[354679606,1740612679042,-582.64,0.00051786,120]
[354679607,1740612679051,-565.06,0.00051786,120]
[354679608,1740612679061,-797.5,0.00051786,120]
[354679609,1740612679072,-699.41,0.00051786,120]
[354679610,1740612679082,-2789.44,0.00051786,120]
[354679611,1740612679091,-650.93,0.00051786,120]
[354679612,1740612679100,-910.21,0.00051786,120]
[354679613,1740612679109,-3161.02,0.00051786,120]
[354679614,1740612679118,-615.60487563,0.00051786,120]
[354679615,1740612679127,-725.05,0.00051786,120]
[354679616,1740612679137,-500.0,0.00051786,120]
[354679617,1740612679146,-3123.49,0.00051786,120]
[354679618,1740612679156,-1532.22,0.00051786,120]
[354679619,1740612679166,-696.04,0.00051786,120]
[354679620,1740612679175,-775.5,0.00051786,120]
[354679621,1740612679184,-1560.0,0.00051786,120]
[354679622,1740612679194,-554.15,0.00051786,120]
[354679623,1740612679203,-508.29,0.00051786,120]
[354679624,1740612679213,-636.3,0.00051786,120]
[354679625,1740612679222,-1875.09,0.00051786,120]
[354679626,1740612679232,-506.26,0.00051786,120]
[354679627,1740612679241,-727.01,0.00051786,120]
[354679628,1740612679250,-738.9,0.00051786,120]
[354679629,1740612679259,-500.0,0.00051786,120]
[354679630,1740612679268,-500.0,0.00051786,15]
[354679631,1740612679279,-500.0,0.00051786,120]
[354679632,1740612679288,-2768.85,0.00051786,120]
[354679633,1740612679297,-937.23,0.00051786,120]
[354679634,1740612679307,-786.35,0.00051786,120]
[354679635,1740612679316,-540.54,0.0005181,120]
[354679636,1740612679326,-717.99,0.0005181,120]
[354679637,1740612679336,-913.57,0.0005181,120]
[354679638,1740612679345,-500.0,0.0005181,120]
[354679639,1740612679355,-1771.38,0.0005181,120]
[354679640,1740612679365,-1070.59,0.0005181,120]
[354679641,1740612679375,-500.0,0.0005181,120]
[354679642,1740612679384,-2028.34,0.0005181,120]
[354679643,1740612679393,-724.64,0.0005181,120]
[354679644,1740612679403,-500.0,0.0005181,120]
[354679645,1740612679412,-1677.07,0.0005181,120]
[354679646,1740612679422,-700.65,0.0005181,120]
[354679647,1740612679431,-1712.4,0.0005181,120]
[354679648,1740612679441,-2539.69,0.0005181,120]
[354679649,1740612679451,-712.64,0.0005181,120]
[354679650,1740612679461,-500.0,0.0005181,120]
[354679651,1740612679471,-810.43,0.0005181,120]
[354679652,1740612679480,-3307.1,0.0005181,120]
[354679653,1740612679490,-547.23015222,0.0005181,120]
[354679654,1740612679500,-618.09,0.0005181,120]
[354679655,1740612679509,-882.96,0.0005181,120]
[354679656,1740612679519,-1050.94,0.0005181,120]
[354679657,1740612679528,-500.0,0.0005181,120]
[354679658,1740612679538,-500.0,0.0005181,120]
[354679659,1740612679547,-625.66,0.0005181,120]
[354679660,1740612679557,-1339.38,0.0005181,120]
[354679661,1740612679566,-778.41,0.0005181,120]
[354679662,1740612679576,-536.72,0.0005181,120]
[354679663,1740612679585,-500.0,0.0005181,120]
[354679664,1740612679595,-500.0,0.0005181,120]
[354679665,1740612679604,-500.0,0.00051812,120]
[354679666,1740612679615,-611.27,0.00051812,120]
[354679667,1740612679624,-800.0,0.00051871,30]
[354679668,1740612679634,-672.10761118,0.000519,120]
[354679669,1740612679644,-500.0,0.00051925,2]
[354679670,1740612679653,-10000.0,0.00052,30]
[354679671,1740612679663,-724000.0,0.00052,30]
[354679672,1740612679672,-20000.0,0.00052,8]
[354679673,1740612679683,-1000.0,0.00052,30]
[354679674,1740612679694,-39999.999999,0.00052,40]
[354679675,1740612679706,-434.79642,0.00052,120]
[354679676,1740612679715,-162.034499,0.00052,120]
[354679677,1740612679725,-162.034499,0.00052,120]
[354679678,1740612679735,-810.724101,0.00052,120]
[354679679,1740612679745,-151.0,0.00052,120]
[354679680,1740612679755,-810.724101,0.00052,120]
[354679681,1740612679764,-1536.490674,0.00052,120]
[354679682,1740612679776,-1536.490674,0.00052,120]
[354679683,1740612679786,-168.258599,0.00052,120]
[354679684,1740612679795,-168.258599,0.00052,120]
[354679685,1740612679805,-151.0,0.00052,120]
[354679686,1740612679814,-2036.394798,0.00052,120]
[354679687,1740612679824,-2036.394798,0.00052,120]
[354679688,1740612679833,-413.365869,0.00052,110]
[354679689,1740612679843,-413.365869,0.00052,110]
[354679690,1740612679852,-151.0,0.00052,120]
[354679691,1740612679862,-689.260793,0.00052,120]
[354679692,1740612679872,-476.944486,0.00052,30]
[354679693,1740612679882,-689.260793,0.00052,120]
[354679694,1740612679892,-476.944489,0.00052,30]
[354679695,1740612679902,-151.0,0.00052,120]
[354679696,1740612679911,-241.442179,0.00052,120]
[354679697,1740612679922,-241.442179,0.00052,120]
[354679698,1740612679931,-2778.45,0.00052053,120]
[354679699,1740612679942,-500.0,0.00052053,120]
[354679700,1740612679953,-500.0,0.00052053,120]
[354679701,1740612679964,-861.01,0.00052053,120]
[354679702,1740612679973,-659.09,0.00052053,120]
[354679703,1740612679983,-1687.34,0.00052053,120]
[354679704,1740612679992,-1507.91,0.00052053,120]
[354679705,1740612680001,-795.66,0.00052053,120]
[354679706,1740612680011,-1484.64,0.00052053,120]
[354679707,1740612680021,-896.66,0.00052053,120]
[354679708,1740612680031,-1237.88,0.00052053,120]
[354679709,1740612680041,-1998.85,0.00052053,120]
[354679710,1740612680049,-500.0,0.00052053,120]
[354679711,1740612680060,-1476.84,0.00052053,120]
[354679712,1740612680070,-500.0,0.00052053,120]
[354679713,1740612680079,-842.28,0.00052053,120]
[354679714,1740612680089,-1327.97,0.00052053,120]
[354679715,1740612680099,-978.17,0.00052053,120]
[354679716,1740612680108,-35665.21,0.00052053,120]
[354679717,1740612680119,-1674.6,0.00052053,120]
[354679718,1740612680129,-3374.64,0.00052053,120]
[354679719,1740612680140,-3689.39,0.00052053,120]
[354679720,1740612680149,-999.91,0.00052053,120]
[354679721,1740612680158,-1654.58,0.00052053,120]
[354679722,1740612680168,-8800.67,0.00052053,120]
[354679723,1740612680178,-572.35,0.00052053,120]
[354679724,1740612680188,-2141.75,0.00052053,120]
[354679725,1740612680198,-15272.81,0.00052053,120]
[354679726,1740612680207,-1712.31,0.00052053,120]
[354679727,1740612680217,-1889.46,0.00052053,120]
[354679728,1740612680226,-112701.3,0.00052053,7]
[354679729,1740612680235,-500.0,0.00052053,120]
[354679730,1740612680243,-1846.65,0.00052053,120]
[354679731,1740612680252,-1230.19,0.00052053,120]
[354679732,1740612680262,-513.49,0.00052053,120]
[354679733,1740612680271,-500.0,0.00052053,120]
[354679734,1740612680281,-562.96,0.00052053,120]
[354679735,1740612680290,-500.0,0.00052053,120]
[354679736,1740612680391,-500.0,0.00052054,120]
[354679737,1740612680411,-663.11,0.00052054,120]
[354679738,1740612680423,-690.9,0.00052054,120]
[354679739,1740612680432,-500.0,0.00052054,120]
[354679740,1740612680441,-500.0,0.00052054,120]
[354679741,1740612680451,-500.0,0.00052054,120]
[354679742,1740612680461,-541.34,0.00052054,120]
[354679743,1740612680470,-545.66,0.00052054,120]
[354679744,1740612680479,-683.01,0.00052054,120]
[354679745,1740612680488,-500.0,0.00052054,120]
[354679746,1740612680499,-500.0,0.00052054,120]
[354679747,1740612680508,-880.49,0.00052054,120]
[354679748,1740612680517,-500.0,0.00052054,120]
[354679749,1740612680527,-574.1686235,0.00052054,120]
[354679750,1740612680536,-500.0,0.00052054,120]
[354679751,1740612680546,-217.27765086,0.00052054,120]
[354679752,1740612680555,-434.79642,0.00052054,120]
[354679753,1740612680564,-1645.83,0.00052054,120]
[354679754,1740612680574,-958.64,0.00052054,120]
[354679755,1740612680584,-162.034499,0.00052054,120]
[354679756,1740612680594,-162.034499,0.00052054,120]
[354679757,1740612680604,-759.37,0.00052054,120]
[354679758,1740612680615,-500.0,0.00052054,120]
[354679759,1740612680624,-500.0,0.00052054,120]
[354679760,1740612680634,-810.724101,0.00052054,120]
[354679761,1740612680643,-151.0,0.00052054,120]
[354679762,1740612680655,-810.724093,0.00052054,120]
[354679763,1740612680664,-557.67648717,0.00052054,120]
[354679764,1740612680674,-1087.06,0.00052054,120]
[354679765,1740612680683,-1536.490674,0.00052054,120]
[354679766,1740612680697,-743.94,0.00052054,120]
[354679767,1740612680706,-1536.490671,0.00052054,120]
[354679768,1740612680716,-899.12,0.00052054,120]
[354679769,1740612680726,-168.258599,0.00052054,120]
[354679770,1740612680735,-168.258607,0.00052054,120]
[354679771,1740612680745,-151.0,0.00052054,120]
[354679772,1740612680755,-1139.33,0.00052054,120]
[354679773,1740612680764,-969.63,0.00052054,120]
[354679774,1740612680775,-1562.95,0.00052054,120]
[354679775,1740612680785,-649.28,0.00052054,120]
[354679776,1740612680795,-492.67497026,0.00052054,120]
[354679777,1740612680805,-683.51,0.00052054,120]
[354679778,1740612680815,-2036.394798,0.00052054,120]
[354679779,1740612680824,-2036.39479608,0.00052054,120]
[354679780,1740612680834,-500.0,0.00052054,120]
[354679781,1740612680843,-618.32,0.00052054,120]
[354679782,1740612680853,-702.29,0.00052054,120]
[354679783,1740612680863,-413.365869,0.00052054,110]
[354679784,1740612680872,-413.365869,0.00052054,110]
[354679785,1740612680882,-500.0,0.00052054,120]
[354679786,1740612680892,-500.0,0.00052054,120]
[354679787,1740612680902,-623.05,0.00052054,120]
[354679788,1740612680912,-812.36,0.00052054,120]
[354679789,1740612680923,-210.525339,0.00052054,120]
[354679790,1740612680933,-500.0,0.00052054,120]
[354679791,1740612680942,-977.8,0.00052054,120]
[354679792,1740612680952,-500.0,0.00052054,120]
[354679793,1740612680961,-507.5862895,0.00052054,120]
[354679794,1740612680970,-689.260793,0.00052054,120]
[354679795,1740612680980,-689.260798,0.00052054,120]
[354679796,1740612680990,-412.76293352,0.00052054,120]
[354679797,1740612680999,-500.0,0.00052054,120]
[354679798,1740612681008,-151.0,0.00052054,120]
[354679799,1740612681018,-846.39,0.00052054,120]
[354679800,1740612681027,-500.0,0.00052054,120]
[354679801,1740612681037,-564.78,0.00052054,120]
[354679802,1740612681046,-241.442179,0.00052054,120]
[354679803,1740612681056,-539.55,0.00052054,120]
[354679804,1740612681065,-241.44217,0.00052054,120]
[354679805,1740612681075,-500.0,0.00052054,120]
[354679806,1740612681084,-1428.1,0.00052054,120]
[354679807,1740612681094,-500.0,0.00052054,120]
[354679808,1740612681103,-600.9,0.00052054,120]
[354679809,1740612681113,-500.0,0.00052054,120]
[354679810,1740612681123,-615.68,0.00052054,120]
[354679811,1740612681132,-802.71,0.00052054,120]
[354679812,1740612681142,-859.89,0.00052054,120]
[354679813,1740612681152,-500.0,0.00052054,120]
[354679814,1740612681161,-7716.64,0.00052054,120]
[354679815,1740612681170,-1087.51,0.00052054,120]
[354679816,1740612681180,-500.0,0.00052054,120]
[354679817,1740612681189,-11356.27,0.00052054,120]
[354679818,1740612681198,-720.55289518,0.00052054,120]
[354679819,1740612681370,-7424.58710482,0.00052054,120]
[354679820,1740612681380,-500.0,0.00052054,120]
[354679821,1740612681389,-2928.74,0.00052054,120]
[354679822,1740612681399,-1626.2,0.00052054,120]
[354679823,1740612681408,-982.75,0.00052054,120]
[354679824,1740612681417,-513.83,0.00052054,120]
[354679825,1740612681427,-500.0,0.00052054,120]
[354679826,1740612681436,-802.07,0.00052054,120]
[354679827,1740612681445,-3574.17,0.00052054,120]
[354679828,1740612681454,-1405.43,0.00052054,120]
[354679829,1740612681463,-511.36,0.00052054,30]
[354679830,1740612681472,-7025.95,0.00052054,120]
[354679831,1740612681481,-200.72021543,0.00052054,120]
[354679832,1740612681490,-732.33,0.00052054,120]
[354679833,1740612681500,-11606.25,0.00052054,3]
[354679834,1740612681509,-500.0,0.00052054,120]
[354679835,1740612681519,-522.21,0.00052054,120]
[354679836,1740612681528,-6098.04,0.00052054,120]
[354679837,1740612681537,-1769.31,0.00052054,120]
[354679838,1740612681546,-531.78,0.00052054,120]
[354679839,1740612681556,-4375.48666223,0.00052054,120]
[354679840,1740612681755,-274.78,0.00047397,6]
[354679841,1740612681765,-502.82324713,0.00049313,120]
[354679842,1740612681775,-500.0,0.00050136,120]
[354679843,1740612681784,-293.44602048,0.0005041,120]
[354679844,1740612681794,-790.45333777,0.00052054,120]
[354679845,1740612681803,-1296.39,0.00052054,120]
[354679846,1740612681811,-745.32,0.00052054,120]
[354679847,1740612681820,-1319.72,0.00052054,120]
[354679848,1740612681829,-1434.05,0.00052054,120]
[354679849,1740612681838,-602.5,0.00052054,120]
[354679850,1740612681847,-901.96,0.00052054,120]
[354679851,1740612681856,-11788.68,0.00052054,120]
[354679852,1740612681866,-500.0,0.00052054,120]
[354679853,1740612681875,-3610.93,0.00052054,120]
[354679854,1740612681885,-506.91,0.00052054,120]
[354679855,1740612681894,-1267.92,0.00052054,120]
[354679856,1740612681904,-2222.15,0.00052054,120]
[354679857,1740612681913,-600.75,0.00052054,120]
[354679858,1740612681922,-963.51,0.00052054,120]
[354679859,1740612681932,-1913.08,0.00052054,120]
[354679860,1740612681941,-1913.08,0.00052054,120]
[354679861,1740612682052,-1913.08,0.00052054,120]
[354679862,1740612682061,-1913.08,0.00052054,120]
[354679863,1740612682071,-1913.08,0.00052054,120]
[354679864,1740612682080,-1913.08,0.00052054,120]
[354679865,1740612682089,-1913.08,0.00052054,120]
[354679866,1740612682098,-1872.17,0.00052054,120]
[354679867,1740612682107,-1913.08,0.00052054,120]
[354679868,1740612682116,-1913.08,0.00052054,120]
[354679869,1740612682126,-1913.08,0.00052054,120]
[354679870,1740612682135,-1913.08,0.00052054,120]
[354679871,1740612682145,-7675.21,0.00052054,120]
[354679872,1740612682154,-1913.08,0.00052054,120]
[354679873,1740612682163,-1913.08,0.00052054,120]
[354679874,1740612682173,-1913.08,0.00052054,120]
[354679875,1740612682182,-1913.08,0.00052054,120]
[354679876,1740612682191,-1913.08,0.00052054,120]
[354679877,1740612682201,-1913.08,0.00052054,120]
[354679878,1740612682210,-1913.08,0.00052054,120]
[354679879,1740612682221,-1913.08,0.00052054,120]
[354679880,1740612682231,-1913.08,0.00052054,120]
[354679881,1740612682241,-1913.08,0.00052054,120]
[354679882,1740612682253,-3447.65,0.00052054,120]
[354679883,1740612682263,-714.42,0.00052054,120]
[354679884,1740612682273,-396.5298169,0.00052054,120]
[354679885,1740612682282,-1518.89,0.00052054,120]
[354679886,1740612682295,-828.63,0.00052054,120]
[354679887,1740612682304,-500.0,0.00052054,120]
[354679888,1740612682314,-874.37,0.00052054,120]
[354679889,1740612682325,-1837.18027606,0.00052054,120]
[354679890,1740612682338,-2565.54491867,0.00052054,120]
[354679891,1740612682379,-12043.54480527,0.00052054,120]
[354679892,1740612682389,-987.91,0.00052054,120]
[354679893,1740612682398,-544.41,0.00052054,120]
[354679894,1740612682408,-1207.51,0.0005206,120]
[354679895,1740612682419,-818.25,0.0005206,120]
[354679896,1740612682430,-582.64,0.0005206,120]
[354679897,1740612682440,-565.06,0.0005206,120]
[354679898,1740612682449,-797.5,0.0005206,120]
[354679899,1740612682459,-699.41,0.0005206,120]
[354679900,1740612682468,-2789.44,0.0005206,120]
[354679901,1740612682478,-650.93,0.0005206,120]
[354679902,1740612682487,-910.21,0.0005206,120]
[354679903,1740612682497,-3161.02,0.0005206,120]
[354679904,1740612682506,-725.05,0.0005206,120]
[354679905,1740612682516,-500.0,0.0005206,120]
[354679906,1740612682525,-3123.49,0.0005206,120]
[354679907,1740612682535,-1532.22,0.0005206,120]
[354679908,1740612682545,-696.04,0.0005206,120]
[354679909,1740612682554,-775.5,0.0005206,120]
[354679910,1740612682564,-1560.0,0.0005206,120]
[354679911,1740612682574,-554.15,0.0005206,120]
[354679912,1740612682583,-508.29,0.0005206,120]
[354679913,1740612682592,-561.34518225,0.0005206,120]
[354679914,1740612682727,-500.0,0.00046575,120]
[354679915,1740612682736,-426.48,0.00046575,120]
[354679916,1740612682748,-73.52,0.00046575,120]
[354679917,1740612682757,-500.0,0.00046849,120]
[354679918,1740612682768,-500.0,0.00047123,120]
[354679919,1740612682778,-500.0,0.00047397,120]
[354679920,1740612682787,-531.78167074,0.00049313,120]
[354679921,1740612682796,-500.0,0.00049314,120]
[354679922,1740612682806,-500.0,0.00049314,120]
[354679923,1740612682815,-501.83873759,0.00049588,120]
[354679924,1740612682825,-74.95481775,0.0005206,120]
[354679925,1740612682834,-1383.46477374,0.0005206,120]
[354679926,1740612682846,-491.62522626,0.0005206,120]
[354679927,1740612682855,-506.26,0.0005206,120]
[354679928,1740612682865,-422.11477374,0.0005206,120]
[354679929,1740612683097,-500.0,0.00046575,120]
[354679930,1740612683107,-500.0,0.00047671,120]
[354679931,1740612683117,-238.25,0.00047945,120]
[354679932,1740612683126,-500.0,0.00048796,120]
[354679933,1740612683136,-238.81618767,0.0004907,120]
[354679934,1740612683145,-304.89522626,0.0005206,120]
[354679935,1740612683155,-738.9,0.0005206,120]
[354679936,1740612683164,-500.0,0.0005206,120]
[354679937,1740612683174,-500.0,0.0005206,15]
[354679938,1740612683184,-500.0,0.0005206,120]
[354679939,1740612683193,-2768.85,0.0005206,120]
[354679940,1740612683203,-937.23,0.0005206,120]
[354679941,1740612683212,-786.35,0.0005206,120]
[354679942,1740612683222,-245.40858607,0.00052084,120]
[354679943,1740612683233,-295.13141393,0.00052084,120]
[354679944,1740612683243,-717.99,0.00052084,120]
[354679945,1740612683252,-913.57,0.00052084,120]
[354679946,1740612683262,-500.0,0.00052084,120]
[354679947,1740612683271,-1771.38,0.00052084,120]
[354679948,1740612683281,-1070.59,0.00052084,120]
[354679949,1740612683290,-500.0,0.00052084,120]
[354679950,1740612683299,-2028.34,0.00052084,120]
[354679951,1740612683309,-724.64,0.00052084,120]
[354679952,1740612683318,-500.0,0.00052084,120]
[354679953,1740612683327,-1677.07,0.00052084,120]
[354679954,1740612683336,-700.65,0.00052084,120]
[354679955,1740612683346,-1712.4,0.00052084,120]
[354679956,1740612683355,-2539.69,0.00052084,120]
[354679957,1740612683364,-712.64,0.00052084,120]
[354679958,1740612683374,-500.0,0.00052084,120]
[354679959,1740612683383,-810.43,0.00052084,120]
[354679960,1740612683393,-3307.1,0.00052084,120]
[354679961,1740612683403,-618.09,0.00052084,120]
[354679962,1740612683413,-882.96,0.00052084,120]
[354679963,1740612683422,-1050.94,0.00052084,120]
[354679964,1740612683431,-500.0,0.00052084,120]
[354679965,1740612683441,-500.0,0.00052084,120]
[354679966,1740612683450,-625.66,0.00052084,120]
[354679967,1740612683459,-1339.38,0.00052084,120]
[354679968,1740612683468,-778.41,0.00052084,120]
[354679969,1740612683477,-536.72,0.00052084,120]
[354679970,1740612683486,-500.0,0.00052084,120]
[354679971,1740612683495,-500.0,0.00052084,120]
[354679972,1740612683504,-500.0,0.00052086,120]
[354679973,1740612683513,-611.27,0.00052086,120]
[354679974,1740612683523,-800.0,0.0005215,30]
[354679975,1740612683532,-150.0,0.00052184,2]
[354679976,1740612683541,-150.0,0.00052184,2]
[354679977,1740612683642,-8730.7737347,0.00052184,10]
[354679978,1740612683659,-45004.43926812,0.00052184,120]
[354679979,1740612683668,-2000.0,0.00052184,30]
[354679980,1740612683678,-2000.0,0.00052184,30]
[354679981,1740612683691,-63753.0,0.00052184,120]
[354679982,1740612683702,-1734.199999,0.00052184,30]
[354679983,1740612683712,-2000.0,0.00052184,30]
[354679984,1740612683723,-849.599999,0.00052184,30]
[354679985,1740612683732,-3000.0,0.00052184,120]
[354679986,1740612683743,-2501.78009464,0.00052184,120]
[354679987,1740612683752,-4087.76006288,0.00052184,120]
[354679988,1740612683762,-5367.41896419,0.00052184,120]
[354679989,1740612683771,-9116.84802169,0.00052184,120]
[354679990,1740612683783,-3573.59195479,0.00052184,30]
[354679991,1740612683793,-1411.0,0.00052184,64]
[354679992,1740612683802,-19586.07790424,0.00052184,2]
[354679993,1740612683811,-3277.16029337,0.00052184,120]
[354679994,1740612683822,-155.37488579,0.00052184,30]
[354679995,1740612683832,-10606.75100997,0.00052184,60]
[354679996,1740612683843,-5006.93329018,0.00052184,30]
[354679997,1740612683852,-14761.19480727,0.00052184,32]
[354679998,1740612683862,-13230.84020047,0.00052184,120]
[354679999,1740612683871,-16096.92960614,0.00052184,120]
[354680000,1740612683881,-29939.55145558,0.00052184,120]
[354680001,1740612684004,-3268.28571662,0.00052184,120]
[354680002,1740612684013,-5919.51261801,0.00052184,30]
[354680003,1740612684023,-4127.56850223,0.00052184,120]
[354680004,1740612684032,-899.01714185,0.00052184,120]
[354680005,1740612684041,-3276.14162568,0.00052184,120]
[354680006,1740612684051,-1859.88338119,0.00052184,120]
[354680007,1740612684060,-675.63247139,0.00052184,120]
[354680008,1740612684070,-22604.08614269,0.00052184,120]
[354680009,1740612684084,-10565.65676683,0.00052184,120]
[354680010,1740612684093,-1465.11328961,0.00052184,60]
[354680011,1740612684102,-12077.85012054,0.00052184,32]
[354680012,1740612684115,-7884.37321023,0.00052184,32]
[354680013,1740612684124,-1026.74167576,0.00052184,120]
[354680014,1740612684133,-929.89792301,0.00052184,120]
[354680015,1740612684143,-11925.0,0.00052184,120]
[354680016,1740612684152,-2000.0,0.00052184,120]
[354680017,1740612684161,-1078.24020009,0.00052184,120]
[354680018,1740612684170,-6506.6816847,0.00052184,120]
[354680019,1740612684181,-208.08434325,0.00052184,30]
[354680020,1740612684190,-932.91965384,0.00052184,120]
[354680021,1740612684199,-15008.87022904,0.00052184,10]
[354680022,1740612684209,-1585.79930006,0.00052184,120]
[354680023,1740612684218,-1034.05835123,0.00052184,120]
[354680024,1740612684228,-2532.3214947,0.00052184,120]
[354680025,1740612684238,-989.41822818,0.00052184,120]